[Event "36th Balaton GM 2018"]
[Site "Balatonlelle"]
[Date "2018.06.17"]
[Round "6"]
[White "Naumkin, Igor"]
[Black "Urh, Zala"]
[Result "1-0"]
[ECO "D37"]
[WhiteElo "2383"]
[BlackElo "2248"]
[Annotator "NA"]
[PlyCount "114"]
[EventDate "2018.06.12"]
[EventType "swiss"]
[EventCountry "HUN"]
[SourceTitle "playchess.com"]
[Source "ChessBase"]
[SourceQuality "1"]
[TimeControl "40/5400+30:1800+30"]

1. d4 {[%emt 0:00:05]} Nf6 {[%emt 0:00:37]} 2. c4 {[%emt 0:00:06]} e6 {[%emt 0:00:16]} 3. Nf3 {[%emt 0:00:06]} d5 {[%emt 0:00:18]} 4. Nc3 {[%emt 0:00:17]} Nbd7 {[%emt 0:00:15] LiveBook: 3530 Games} 5. Bg5 {[%emt 0:00:16]} h6 {[%emt 0:00:56]} 6. Bh4 {[%emt 0:00:13]} dxc4 {[%emt 0:00:15]} 7. e3 {[%emt 0:00:23]} a6 {[%emt 0:01:11] D51: Damengambit (Cambridge-Springs-Variante und Abweichungen)} 8. a4 {[%emt 0:00:54]} b6 {[%emt 0:05:11]} 9. Bxc4 {[%emt 0:01:01]} Bb7 {[%emt 0:00:13]} 10. O-O {[%emt 0:00:19]} Be7 {[%emt 0:01:30]} 11. Qe2 {[%emt 0:01:33]} O-O {[%emt 0:12:58]} 12. Rad1 $146 {[%emt 0:04:08]} ({Vorgänger:} 12. Rfd1 Ne4 13. Nxe4 Bxh4 {1-0 (76) Aronian,L (2797)-Wang,H (2710) Beijing 2014}) 12... Ne4 {[%emt 0:03:08]} 13. Nxe4 {[%emt 0:06:01]} Bxh4 {[%emt 0:01:27]} 14. Nc3 {[%emt 0:00:40]} Be7 {[%emt 0:09:55]} 15. e4 {[%emt 0:03:27]} c6 {[%emt 0:02:57]} 16. e5 {[%emt 0:00:36]} Qc7 {[%emt 0:02:58]} 17. Qe3 {[%emt 0:12:41]} Rfd8 {[%emt 0:08:28]} 18. Ba2 {[%emt 0:12:38]} Nf8 {[%emt 0:03:44]} 19. h4 {[%emt 0:02:10]} b5 {[%emt 0:09:50]} 20. Rd3 {[%emt 0:08:59]} Rac8 {[%emt 0:14:59]} 21. Rfd1 {[%emt 0:11:39]} b4 {[%emt 0:02:41]} 22. Ne4 {[%emt 0:01:06]} c5 {[%emt 0:01:01]} 23. dxc5 {[%emt 0:07:41]} Rxd3 {[%emt 0:05:46]} 24. Rxd3 {[%emt 0:00:18]} Bxe4 {[%emt 0:00:27]} 25. Qxe4 {[%emt 0:00:31]} Qxc5 {[%emt 0:00:25]} 26. Rd2 {[%emt 0:03:47]} a5 {[%emt 0:01:40]} 27. Bb3 {[%emt 0:01:18]} Qc6 {[%emt 0:03:27]} 28. Qxc6 {[%emt 0:03:45]} Rxc6 {[%emt 0:00:01]} 29. g3 {[%emt 0:02:28]} Rc5 {[%emt 0:01:49]} 30. Nd4 {[%emt 0:02:10]} g5 {[%emt 0:04:59]} 31. hxg5 {[%emt 0:00:35]} hxg5 {[%emt 0:00:00]} 32. Rc2 {[%emt 0:06:05]} Rxc2 {[%emt 0:01:26]} 33. Bxc2 {[%emt 0:00:13]} Bd8 {[%emt 0:00:41]} 34. Nc6 {[%emt 0:00:17]} Bc7 {[%emt 0:00:17]} 35. Kg2 {[%emt 0:01:37]} Nd7 {[%emt 0:00:49]} 36. f4 {[%emt 0:00:28]} gxf4 {[%emt 0:00:46]} 37. gxf4 {[%emt 0:00:06]} f6 {[%emt 0:00:45]} 38. exf6 {[%emt 0:04:18]} Bxf4 {[%emt 0:00:11]} 39. Nxa5 {[%emt 0:00:50]} Ne5 {[%emt 0:00:44]} 40. Nb7 {[%emt 0:00:00]} Nc4 $2 {[%emt 0:00:54]} (40... Kf7 $11 {and Black is okay.}) 41. b3 {[%emt 0:02:58]} Ne5 {[%emt 0:11:59]} 42. Nd8 {[%emt 0:07:06]} Be3 {[%emt 0:04:31]} 43. a5 {[%emt 0:01:50]} Kf8 {[%emt 0:01:43]} 44. Nxe6+ {[%emt 0:06:31]} Kf7 {[%emt 0:00:19]} 45. Nc7 {[%emt 0:00:24]} Bc5 {[%emt 0:04:36] [#]} 46. Be4 $1 {[%emt 0:05:59]} Kxf6 {[%emt 0:09:33]} 47. a6 {[%emt 0:01:22]} Nd7 {[%emt 0:00:12]} 48. Nb5 {[%emt 0:01:22]} Ke5 {[%emt 0:00:40]} 49. Kf3 $18 {[%emt 0:04:00]} Bb6 {[%emt 0:00:36]} 50. a7 {[%emt 0:00:36]} Bxa7 {[%emt 0:00:01]} 51. Nxa7 {[%emt 0:00:06]} Nc5 {[%emt 0:00:35]} 52. Bc2 {[%emt 0:00:29]} Kd4 {[%emt 0:00:52]} 53. Nb5+ {[%emt 0:00:13]} Kd5 {[%emt 0:00:10]} 54. Ke3 {[%emt 0:00:26]} Ne6 {[%emt 0:00:57]} 55. Bf5 {[%emt 0:00:56]} Nc5 {[%emt 0:00:32]} 56. Nd4 {[%emt 0:00:39]} Ke5 {[%emt 0:00:09]} 57. Bh7 {[%emt 0:00:46]} Kd5 {Ke4+} 1-0

[Event "36th Balaton GM 2018"]
[Site "Balatonlelle"]
[Date "2018.06.17"]
[Round "6"]
[White "Soham Das"]
[Black "Erturan, Yakup"]
[Result "1-0"]
[ECO "B31"]
[WhiteElo "2355"]
[BlackElo "2384"]
[Annotator "NA"]
[PlyCount "55"]
[EventDate "2018.06.12"]
[EventType "swiss"]
[EventCountry "HUN"]
[SourceTitle "playchess.com"]
[Source "ChessBase"]
[SourceQuality "1"]
[TimeControl "40/5400+30:1800+30"]

1. e4 {[%emt 0:00:02]} c5 {[%emt 0:00:38]} 2. Nf3 {[%emt 0:00:30]} Nc6 {[%emt 0:02:03]} 3. Bb5 {[%emt 0:00:14]} g6 {[%emt 0:00:12]} 4. Bxc6 {[%emt 0:00:23]} dxc6 {[%emt 0:00:05]} 5. d3 {[%emt 0:00:19]} Bg7 {[%emt 0:00:22]} 6. h3 {[%emt 0:00:09]} Nf6 {[%emt 0:00:05]} 7. Nc3 {[%emt 0:01:45]} Nd7 {[%emt 0:00:46]} 8. Be3 {[%emt 0:02:35]} e5 {[%emt 0:01:52]} 9. Qd2 {[%emt 0:02:42]} h6 {[%emt 0:00:58]} 10. Nh2 {[%emt 0:16:07]} Qe7 {[%emt 0:04:57]} 11. O-O {[%emt 0:02:04]} Nf8 {[%emt 0:05:48]} 12. f4 {[%emt 0:18:38] LiveBook: 175 Games} exf4 {[%emt 0:02:42]} 13. Bxf4 {[%emt 0:00:18]} g5 {[%emt 0:03:30]} 14. Bg3 {[%emt 0:07:36]} Be6 {[%emt 0:06:55]} 15. e5 {[%emt 0:15:27]} Ng6 $16 {[%emt 0:05:25]} 16. Nf3 {[%emt 0:13:36]} O-O {[%emt 0:04:39]} 17. Ne4 {[%emt 0:01:10]} Bd5 {[%emt 0:02:01]} 18. Nf6+ {[%emt 0:04:41]} Bxf6 {[%emt 0:05:09]} 19. exf6 {[%emt 0:00:02]} Qxf6 {[%emt 0:01:29]} 20. Ne5 {[%emt 0:00:14]} Qd6 {[%emt 0:17:55]} 21. Rae1 {[%emt 0:02:25]} Rae8 {[%emt 0:04:35]} 22. Ng4 {[%emt 0:06:46]} Qxg3 {[%emt 0:00:25]} 23. Nf6+ {[%emt 0:00:17]} Kh8 {[%emt 0:00:35]} 24. Rxe8 {[%emt 0:01:46]} Rxe8 {[%emt 0:00:36]} 25. Nxe8 {[%emt 0:00:02]} Ne5 {[%emt 0:00:27]} 26. Rf6 {[%emt 0:02:24]} Ng6 {[%emt 0:03:03]} 27. Rxg6 {[%emt 0:00:41]} Qe5 {[%emt 0:00:14]} 28. Rxh6+ {[%emt 0:00:17]} 1-0

[Event "36th Balaton GM 2018"]
[Site "Balatonlelle"]
[Date "2018.06.17"]
[Round "6"]
[White "Li, Bo"]
[Black "Kavutskiy, Konstantin"]
[Result "1-0"]
[ECO "E62"]
[WhiteElo "2333"]
[BlackElo "2397"]
[Annotator "NA"]
[PlyCount "59"]
[EventDate "2018.06.12"]
[EventType "swiss"]
[EventCountry "HUN"]
[SourceTitle "playchess.com"]
[Source "ChessBase"]
[SourceQuality "1"]
[TimeControl "40/5400+30:1800+30"]

1. d4 {[%emt 0:00:04]} Nf6 {[%emt 0:12:41]} 2. c4 {[%emt 0:00:36]} g6 {[%emt 0:00:07]} 3. g3 {[%emt 0:01:14]} Bg7 {[%emt 0:00:05]} 4. Bg2 {[%emt 0:00:41]} O-O {[%emt 0:00:09]} 5. Nc3 {[%emt 0:00:48]} d6 {[%emt 0:00:14]} 6. Nf3 {[%emt 0:03:17]} c6 {[%emt 0:00:19]} 7. O-O {[%emt 0:03:48]} Bf5 {[%emt 0:00:23]} 8. Nh4 {[%emt 0:13:52]} Be6 {[%emt 0:00:49]} 9. b3 {[%emt 0:02:13]} d5 {[%emt 0:00:31]} 10. Qd3 {[%emt 0:04:54]} c5 {[%emt 0:10:36]} 11. dxc5 {[%emt 0:03:22]} Ne4 {[%emt 0:08:14]} 12. cxd5 {[%emt 0:20:41]} Nxc3 {[%emt 0:00:57]} 13. dxe6 {[%emt 0:09:42]} Nc6 {[%emt 0:02:59]} 14. exf7+ {[%emt 0:01:37]} Rxf7 {[%emt 0:00:18]} 15. Kh1 $16 {[%emt 0:03:59]} Qxd3 {[%emt 0:11:08]} 16. exd3 {[%emt 0:00:01]} Rd8 {[%emt 0:00:10]} 17. Nf3 {[%emt 0:06:34]} Rxd3 {[%emt 0:06:09]} 18. Be3 {[%emt 0:04:06]} Nd5 {[%emt 0:14:43]} 19. Rad1 {[%emt 0:02:07]} Rxe3 {[%emt 0:00:41]} 20. Ng5 {[%emt 0:01:51]} Nc3 {[%emt 0:04:02]} 21. fxe3 {[%emt 0:00:29]} Nxd1 {[%emt 0:00:10]} 22. Bd5 {[%emt 0:02:00]} Nxe3 {[%emt 0:00:28]} 23. Bxf7+ {[%emt 0:00:28]} Kh8 {[%emt 0:00:09]} 24. Re1 {[%emt 0:00:33]} Ng4 {[%emt 0:01:36]} 25. Bc4 {[%emt 0:03:06]} Bc3 {[%emt 0:01:20]} 26. Rf1 {[%emt 0:00:40]} Nf6 {[%emt 0:00:54]} 27. Ne6 {[%emt 0:00:24]} Ne5 {[%emt 0:02:31]} 28. Rd1 {[%emt 0:00:27]} h5 {[%emt 0:01:30]} 29. Rd8+ Kh7 {[%emt 0:00:08]} 30. Rb8 {[%emt 0:00:29]} 1-0

[Event "36th Balaton GM 2018"]
[Site "Balatonlelle"]
[Date "2018.06.17"]
[Round "6"]
[White "Gorti, Akshita"]
[Black "Vegh, Endre"]
[Result "0-1"]
[ECO "A04"]
[WhiteElo "2258"]
[BlackElo "2260"]
[Annotator "NA"]
[PlyCount "84"]
[EventDate "2018.06.12"]
[EventType "swiss"]
[EventCountry "HUN"]
[SourceTitle "playchess.com"]
[Source "ChessBase"]
[SourceQuality "1"]
[TimeControl "40/5400+30:1800+30"]

1. Nf3 {[%emt 0:00:04]} b6 {[%emt 0:02:00]} 2. d4 {[%emt 0:03:24]} Bb7 {[%emt 0:01:10]} 3. e3 {[%emt 0:01:45]} e6 {[%emt 0:01:35]} 4. Bd3 {[%emt 0:01:05]} f5 {[%emt 0:02:01]} 5. O-O {[%emt 0:02:41]} Nf6 {[%emt 0:00:36]} 6. c4 {[%emt 0:01:01]} Be7 {[%emt 0:01:43]} 7. Nc3 {[%emt 0:05:02]} O-O {[%emt 0:03:29] A85: Dutch Defence: 2 c4 Nf6 3 Nc3} 8. Nd2 {[%emt 0:04:25]} (8. d5 Na6 9. a3 Nc5 10. Bc2 a5 11. b3 Nfe4 12. Ne2 Bf6 13. Rb1 Nd6 14. b4 axb4 15. axb4 {1-0 (99) Stefanova,A (2500)-Zhao,X (2477) Huaian 2017}) 8... Nc6 {[%emt 0:06:05]} 9. a3 {[%emt 0:04:00]} a5 $146 {[%emt 0:01:58]} ({Predecessor:} 9... a6 10. b4 Qe8 11. Be2 Qg6 12. Bf3 Ra7 13. c5 e5 14. Nd5 exd4 15. Nxe7+ Nxe7 16. Bxb7 Rxb7 17. exd4 {0-1 (32) Vu,D (1488)-Diller,P (1939) Nürnberg 2014}) 10. Qc2 {[%emt 0:01:22]} Qe8 {[%emt 0:04:16]} 11. Nf3 {[%emt 0:03:31]} Nd8 {[%emt 0:07:48]} 12. e4 {[%emt 0:03:44]} fxe4 {[%emt 0:01:07]} 13. Nxe4 {[%emt 0:00:10]} Nxe4 {[%emt 0:00:39]} 14. Bxe4 {[%emt 0:00:06]} Bxe4 {[%emt 0:00:27]} 15. Qxe4 {[%emt 0:00:12]} Nf7 {[%emt 0:00:28]} 16. Bd2 {[%emt 0:04:39]} Nd6 {[%emt 0:03:13]} 17. Qd3 {[%emt 0:00:59]} a4 {[%emt 0:02:39]} 18. Rae1 {[%emt 0:04:12]} Bf6 {[%emt 0:03:51]} 19. Bb4 {[%emt 0:06:10]} Qg6 $14 {[%emt 0:06:34]} 20. Qe2 {[%emt 0:07:28]} Rf7 {[%emt 0:02:04]} 21. c5 {[%emt 0:04:37]} bxc5 {[%emt 0:04:54]} 22. dxc5 {[%emt 0:00:36]} Nf5 {[%emt 0:01:17]} 23. c6 {[%emt 0:03:10]} dxc6 {[%emt 0:01:08]} 24. Qxe6 {[%emt 0:00:24]} Bxb2 {[%emt 0:04:30]} 25. Qe8+ {[%emt 0:14:23]} Rf8 {[%emt 0:00:05]} 26. Qe2 {[%emt 0:00:29]} Nd6 {[%emt 0:03:41]} 27. Qxb2 {[%emt 0:06:34]} Rxf3 {[%emt 0:00:12]} 28. Qc1 {[%emt 0:01:22]} Nf7 {[%emt 0:08:00]} 29. Qc4 {[%emt 0:01:14]} h6 {[%emt 0:06:06]} 30. Re6 {[%emt 0:02:56]} Rf6 {[%emt 0:00:13]} 31. Rfe1 {[%emt 0:07:47]} Rd8 {[%emt 0:05:56]} 32. h4 {[%emt 0:01:51]} Rxe6 {[%emt 0:02:07]} 33. Rxe6 {[%emt 0:00:32]} Rd1+ {[%emt 0:02:33]} 34. Kh2 {[%emt 0:00:12]} Qf5 {[%emt 0:01:02]} 35. Bc5 {[%emt 0:02:11]} Rd5 {[%emt 0:02:46]} 36. Rxc6 {[%emt 0:01:27]} Kh7 {[%emt 0:00:30]} 37. Rxc7 {[%emt 0:02:01]} Ne5 {[%emt 0:00:56]} 38. Qe2 {[%emt 0:00:37]} Ng4+ {[%emt 0:00:38]} 39. Kg3 {[%emt 0:00:25]} Nf6 {[%emt 0:03:08]} 40. Bb6 {[%emt 0:00:00]} Rd3+ {[%emt 0:02:26]} 41. f3 {[%emt 0:05:48]} Rb3 {[%emt 0:12:17]} 42. Bf2 {[%emt 0:11:21]} Nh5+ {[%emt 0:01:38]} 0-1

[Event "36th Balaton GM 2018"]
[Site "Balatonlelle"]
[Date "2018.06.17"]
[Round "6"]
[White "Moksh Amit Doshi"]
[Black "Saber, Yasser"]
[Result "1-0"]
[ECO "A41"]
[WhiteElo "2203"]
[BlackElo "2266"]
[Annotator "NA"]
[PlyCount "87"]
[EventDate "2018.06.12"]
[EventType "swiss"]
[EventCountry "HUN"]
[SourceTitle "playchess.com"]
[Source "ChessBase"]
[SourceQuality "1"]
[TimeControl "40/5400+30:1800+30"]

1. d4 {[%emt 0:00:40]} d6 {[%emt 0:00:39]} 2. c4 {[%emt 0:00:07]} e5 {[%emt 0:00:21]} 3. Nc3 {[%emt 0:00:32]} exd4 {[%emt 0:00:03]} 4. Qxd4 {[%emt 0:00:10]} Nc6 {[%emt 0:00:02]} 5. Qd2 {[%emt 0:00:13] LiveBook: 428 Games} Be6 {[%emt 0:03:24]} 6. b3 {[%emt 0:00:26]} Nf6 {[%emt 0:01:19]} 7. e4 {[%emt 0:00:51]} a5 {[%emt 0:02:36]} 8. f3 {[%emt 0:07:20] A21: English Opening: 1...e5 2 Nc3} (8. Bb2 a4 9. Rd1 axb3 10. axb3 g6 11. Bd3 Bg7 12. Nge2 O-O 13. O-O Nd7 14. Nd5 Nc5 15. Bxg7 Kxg7 {0-1 (40) Dreev,A (2664)-Svidler,P (2759) Almaty 2016}) 8... a4 {[%emt 0:07:00]} 9. Nxa4 {[%emt 0:08:04]} d5 $146 {[%emt 0:18:38]} ({Predecessor:} 9... Rxa4 10. bxa4 d5 11. Bb2 Bb4 12. Bc3 Bxc3 13. Qxc3 dxe4 14. f4 O-O 15. Ne2 Qa8 {0-1 (34) Albrecht,H (2263)-Balashov,Y (2459) Schwaebisch Gmuend 2006}) 10. exd5 {[%emt 0:01:15]} Rxa4 {[%emt 0:00:03]} 11. Bb2 $1 {[%emt 0:00:51]} Ra8 {[%emt 0:13:02]} 12. dxc6 {[%emt 0:03:02]} Qxd2+ {[%emt 0:02:46]} 13. Kxd2 {[%emt 0:00:08]} Rd8+ {[%emt 0:02:19]} (13... b5 $16 {was worth a try.}) 14. Bd3 {[%emt 0:10:30]} bxc6 {[%emt 0:06:18]} 15. Kc2 {[%emt 0:01:04]} Bc5 {[%emt 0:04:34]} 16. Ne2 {[%emt 0:00:47]} O-O {[%emt 0:00:04]} 17. Rhd1 {[%emt 0:02:23]} Be3 {[%emt 0:02:30]} 18. Bxf6 {[%emt 0:02:39]} gxf6 {[%emt 0:00:02]} 19. Be4 {[%emt 0:00:13]} c5 {[%emt 0:00:19]} 20. Rxd8 $18 {[%emt 0:01:12]} Rxd8 {[%emt 0:00:01]} 21. Rd1 {[%emt 0:00:15]} Bd4 {[%emt 0:11:06]} 22. g4 {[%emt 0:01:31]} h5 {[%emt 0:00:28]} 23. gxh5 {[%emt 0:03:36]} f5 {[%emt 0:00:36]} 24. Nxd4 {[%emt 0:02:00]} cxd4 {[%emt 0:01:00]} 25. Rg1+ {[%emt 0:00:05]} Kf8 {[%emt 0:00:47]} 26. Bd3 {[%emt 0:02:50]} c5 {[%emt 0:06:09]} 27. f4 {[%emt 0:01:01]} Ke7 {[%emt 0:00:17]} 28. Be2 {[%emt 0:00:36]} d3+ {[%emt 0:09:43]} 29. Bxd3 {[%emt 0:00:06]} Rd4 {[%emt 0:00:39]} 30. Rf1 {[%emt 0:01:10]} Kf6 {[%emt 0:00:03]} 31. a4 {[%emt 0:00:35]} Bc8 {[%emt 0:00:12]} 32. Kc3 {[%emt 0:01:25]} Bb7 {[%emt 0:00:25]} 33. b4 {[%emt 0:00:31]} Be4 {[%emt 0:00:05]} 34. Bxe4 {[%emt 0:00:08]} fxe4 {[%emt 0:00:10]} 35. bxc5 {[%emt 0:00:22]} Rd3+ {[%emt 0:00:02]} 36. Kb4 {[%emt 0:00:14]} Rf3 {[%emt 0:07:17]} 37. Rd1 {[%emt 0:00:20]} Rf2 {[%emt 0:01:34]} 38. c6 {[%emt 0:00:06]} Rb2+ {[%emt 0:00:20]} 39. Kc5 {[%emt 0:00:07]} Rb8 {[%emt 0:00:06]} 40. c7 {[%emt 0:00:00]} Rc8 {[%emt 0:00:04]} 41. Kc6 {[%emt 0:00:13]} Kf5 {[%emt 0:00:03]} 42. Rd8 {[%emt 0:00:21]} Rxc7+ {[%emt 0:00:06]} 43. Kxc7 {[%emt 0:00:06]} Kxf4 {[%emt 0:00:09]} 44. h6 {[%emt 0:00:05]} 1-0

[Event "36th Balaton GM 2018"]
[Site "Balatonlelle"]
[Date "2018.06.18"]
[Round "7"]
[White "Erturan, Yakup"]
[Black "Li, Bo"]
[Result "1/2-1/2"]
[ECO "B90"]
[WhiteElo "2384"]
[BlackElo "2333"]
[Annotator "NA"]
[PlyCount "110"]
[EventDate "2018.06.12"]
[EventType "swiss"]
[EventCountry "HUN"]
[SourceTitle "playchess.com"]
[Source "ChessBase"]
[SourceQuality "1"]
[TimeControl "40/5400+30:1800+30"]

1. e4 {[%emt 0:01:08]} c5 {[%emt 0:02:49]} 2. Nf3 {[%emt 0:00:06]} d6 {[%emt 0:02:50]} 3. d4 {[%emt 0:00:35]} cxd4 {[%emt 0:00:52]} 4. Nxd4 {[%emt 0:00:11]} Nf6 {[%emt 0:00:54]} 5. Nc3 {[%emt 0:00:38]} a6 {[%emt 0:01:13]} 6. Be3 {[%emt 0:04:07]} Ng4 {[%emt 0:07:59]} 7. Bc1 {[%emt 0:00:40]} Nf6 {[%emt 0:01:58]} 8. f3 {[%emt 0:00:42]} e5 {[%emt 0:04:19]} 9. Nb3 {[%emt 0:00:15]} Be6 {[%emt 0:03:49]} 10. Be3 {[%emt 0:00:19]} d5 {[%emt 0:08:00] B90: Sicilian Najdorf: Unusual White 6th moves, 6 Be3 Ng4 and 6 Be3 e5} (10... Be7 11. Qd2 Nbd7 12. g4 O-O 13. g5 Nh5 14. O-O-O b5 15. Nd5 Bxd5 16. exd5 f6 17. gxf6 Bxf6 18. Kb1 Nf4 19. Rg1 Kh8 20. Bd3 Bg5 21. Na5 Bh6 22. Nc6 Qh4 23. Qb4 {½-½ (49) Caruana,F (2784)-Mamedyarov,S (2809) Berlin 2018}) 11. exd5 {[%emt 0:00:55] LiveBook: 11 Games} Nxd5 {[%emt 0:00:43]} 12. Nxd5 {[%emt 0:00:06]} Bxd5 {[%emt 0:05:37]} 13. Qd3 {[%emt 0:29:49]} Nc6 {[%emt 0:07:01]} 14. c3 $146 {[%emt 0:15:44]} ({Predecessor:} 14. O-O-O Be6 15. Nc5 Bxc5 16. Bxc5 Qxd3 17. Bxd3 Rc8 18. Rhe1 f6 19. f4 Bxa2 20. Bf5 Kf7 21. Rd7+ {1-0 (19) Szyszylo,R (2214)-Langner,T (1968) Germany 2014}) 14... e4 {[%emt 0:05:11]} 15. fxe4 {[%emt 0:00:33]} Qh4+ {[%emt 0:00:46]} 16. Bf2 {[%emt 0:00:49]} Qxe4+ {[%emt 0:00:35]} 17. Qxe4+ {[%emt 0:00:09]} Bxe4 {[%emt 0:00:07]} 18. O-O-O {[%emt 0:17:24]} Be7 {[%emt 0:00:30]} 19. Re1 {[%emt 0:03:09]} f5 {[%emt 0:17:48]} 20. Nc5 {[%emt 0:03:20]} Bxc5 {[%emt 0:02:36]} 21. Bxc5 {[%emt 0:00:12]} O-O-O {[%emt 0:00:39]} 22. Rg1 {[%emt 0:01:38]} Rd5 {[%emt 0:02:54]} 23. Bb6 {[%emt 0:02:03]} Ne5 {[%emt 0:02:45]} 24. Be2 {[%emt 0:00:44]} Nd3+ {[%emt 0:03:05]} 25. Bxd3 {[%emt 0:00:10]} Rxd3 {[%emt 0:00:22]} 26. Bd4 {[%emt 0:00:46]} Rd8 {[%emt 0:01:56]} 27. Re2 {[%emt 0:03:55]} g6 {[%emt 0:01:31]} 28. Rge1 {[%emt 0:00:30]} Re8 {[%emt 0:01:05]} 29. Rf2 {[%emt 0:02:16]} Kd7 {[%emt 0:02:47]} 30. Rd1 {[%emt 0:03:03]} Rxd1+ {[%emt 0:01:00]} 31. Kxd1 {[%emt 0:00:03]} Bd5 {[%emt 0:01:24]} 32. b3 {[%emt 0:00:19]} Kc6 {[%emt 0:02:05]} 33. g3 {[%emt 0:01:23]} a5 {[%emt 0:00:53]} 34. c4 {[%emt 0:01:16]} Be4 {[%emt 0:00:24]} 35. Kc1 {[%emt 0:00:26]} a4 {[%emt 0:01:28]} 36. Kb2 {[%emt 0:00:29]} axb3 {[%emt 0:00:19]} 37. axb3 {[%emt 0:00:10]} Ra8 {[%emt 0:01:08]} 38. Rd2 {[%emt 0:00:29]} b5 {[%emt 0:01:28]} 39. cxb5+ {[%emt 0:01:21]} Kxb5 {[%emt 0:00:01]} 40. Bc3 {[%emt 0:00:00]} Ra7 {[%emt 0:00:19]} 41. Rd6 {[%emt 0:04:03]} Rf7 {[%emt 0:04:39]} 42. Bd4 {[%emt 0:02:53]} Bc6 {[%emt 0:00:46]} 43. Ka3 {[%emt 0:00:46]} Rd7 {[%emt 0:02:52]} 44. Rxd7 {[%emt 0:00:05]} Bxd7 {[%emt 0:00:05]} 45. h4 {[%emt 0:00:19]} Kc6 {[%emt 0:00:35]} 46. Kb4 {[%emt 0:00:29]} Kd5 {[%emt 0:00:01]} 47. Bg7 {[%emt 0:00:40]} Ke4 {[%emt 0:02:25]} 48. Kc5 {[%emt 0:00:35]} f4 {[%emt 0:01:42]} 49. gxf4 {[%emt 0:00:04]} Kxf4 {[%emt 0:00:07]} 50. b4 {[%emt 0:00:17]} Kg4 {[%emt 0:00:09]} 51. Bf6 {[%emt 0:00:05]} h6 {[%emt 0:00:07]} 52. b5 {[%emt 0:00:05]} Bxb5 {[%emt 0:01:08]} 53. Kxb5 {[%emt 0:00:05]} g5 {[%emt 0:00:05]} 54. hxg5 $11 {[%emt 0:00:04]} hxg5 {[%emt 0:00:15]} 55. Bxg5 {[%emt 0:00:04]} Kxg5 {[%emt 0:00:19]} 1/2-1/2

[Event "36th Balaton GM 2018"]
[Site "Balatonlelle"]
[Date "2018.06.18"]
[Round "7"]
[White "Koksal, Ege"]
[Black "Soham Das"]
[Result "1-0"]
[ECO "A80"]
[WhiteElo "2356"]
[BlackElo "2355"]
[Annotator "ChessBase"]
[PlyCount "47"]
[EventDate "2018.06.12"]
[EventType "swiss"]
[EventCountry "HUN"]
[SourceTitle "playchess.com"]
[Source "ChessBase"]
[SourceQuality "1"]
[TimeControl "40/5400+30:1800+30"]

1. d4 {[%emt 0:01:28]} f5 {[%emt 0:00:56]} 2. Bg5 {[%emt 0:01:24]} h6 {[%emt 0:00:44]} 3. Bh4 {[%emt 0:00:05]} g5 {[%emt 0:00:07]} 4. e3 {[%emt 0:00:05]} Nf6 {[%emt 0:00:04]} 5. Bg3 {[%emt 0:00:04]} d6 {[%emt 0:00:14]} 6. Nc3 {[%emt 0:00:34]} e6 {[%emt 0:00:57]} 7. h4 {[%emt 0:01:28]} Rg8 {[%emt 0:00:16]} 8. hxg5 {[%emt 0:00:40]} hxg5 {[%emt 0:00:06]} 9. Qd2 {[%emt 0:01:21]} Qe7 {[%emt 0:03:36]} 10. O-O-O {[%emt 0:04:07]} Nc6 {[%emt 0:02:55]} 11. Bc4 {[%emt 0:06:28]} Bd7 {[%emt 0:06:16]} 12. d5 {[%emt 0:05:37]} exd5 {[%emt 0:40:01]} 13. Nxd5 {[%emt 0:01:45]} Nxd5 {[%emt 0:00:55]} 14. Bxd5 {[%emt 0:00:27]} Rg6 {[%emt 0:02:07]} 15. f4 {[%emt 0:02:54]} Bg7 {[%emt 0:33:55]} 16. fxg5 {[%emt 0:19:42]} O-O-O {[%emt 0:02:02]} 17. Nf3 {[%emt 0:00:33]} Ne5 {[%emt 0:01:26]} 18. Bf4 {[%emt 0:02:18]} c6 {[%emt 0:01:47]} 19. Bb3 {[%emt 0:00:45]} d5 {[%emt 0:00:39]} 20. Qa5 {[%emt 0:00:45]} a6 {[%emt 0:00:42]} 21. Rh7 {[%emt 0:01:06]} Be8 {[%emt 0:00:43]} 22. Bxe5 {[%emt 0:02:07]} Rxg5 {[%emt 0:00:29]} 23. Nxg5 {[%emt 0:00:49]} Qxe5 {[%emt 0:00:18]} 24. Rxg7 {[%emt 0:00:07]} 1-0

[Event "36th Balaton GM 2018"]
[Site "Balatonlelle"]
[Date "2018.06.19"]
[Round "8"]
[White "Li, Bo"]
[Black "Koksal, Ege"]
[Result "1/2-1/2"]
[ECO "A40"]
[WhiteElo "2333"]
[BlackElo "2356"]
[Annotator "NA"]
[PlyCount "96"]
[EventDate "2018.06.12"]
[EventType "swiss"]
[EventCountry "HUN"]
[SourceTitle "playchess.com"]
[Source "ChessBase"]
[SourceQuality "1"]
[TimeControl "40/5400+30:1800+30"]

1. d4 {[%emt 0:00:32]} Nf6 {[%emt 0:00:52]} 2. c4 {[%emt 0:00:52]} e6 {[%emt 0:00:07]} 3. g3 {[%emt 0:01:06]} c5 {[%emt 0:00:42]} 4. Nf3 {[%emt 0:03:14]} cxd4 {[%emt 0:00:48]} 5. Nxd4 {[%emt 0:01:33]} Qc7 {[%emt 0:01:47]} 6. Nc3 {[%emt 0:04:49]} a6 {[%emt 0:00:10]} 7. Qd3 {[%emt 0:09:17]} Nc6 {[%emt 0:04:15]} 8. Bf4 {[%emt 0:10:49]} e5 {[%emt 0:31:48]} 9. Nxc6 $15 {[%emt 0:01:01]} dxc6 {[%emt 0:02:19]} 10. Bg5 {[%emt 0:00:30]} Be7 {[%emt 0:00:02]} 11. Bg2 {[%emt 0:01:27]} O-O {[%emt 0:01:18]} 12. O-O {[%emt 0:00:40]} Be6 {[%emt 0:00:14]} 13. b3 {[%emt 0:03:46]} Rad8 {[%emt 0:07:36]} 14. Qc2 {[%emt 0:01:12]} Rd7 {[%emt 0:01:04]} 15. Rad1 {[%emt 0:12:35]} Rfd8 {[%emt 0:00:13]} 16. Rxd7 {[%emt 0:01:28]} Rxd7 {[%emt 0:00:12]} 17. Rd1 {[%emt 0:02:57]} Qd8 {[%emt 0:00:49]} 18. Rxd7 {[%emt 0:00:50]} Nxd7 {[%emt 0:02:17]} 19. Bc1 {[%emt 0:05:39]} a5 {[%emt 0:01:13]} 20. Bb2 {[%emt 0:02:31]} Nc5 {[%emt 0:06:38]} 21. Qd1 {[%emt 0:05:02]} Qxd1+ {[%emt 0:01:20]} 22. Nxd1 {[%emt 0:00:02]} a4 {[%emt 0:02:19]} 23. Ba3 {[%emt 0:09:52]} Kf8 {[%emt 0:00:33]} 24. Bxc5 {[%emt 0:01:00]} Bxc5 {[%emt 0:00:02]} 25. Nb2 {[%emt 0:00:58]} axb3 {[%emt 0:10:34]} 26. axb3 {[%emt 0:00:01]} Ke7 {[%emt 0:00:25]} 27. Nd3 {[%emt 0:00:37]} Kd6 {[%emt 0:00:24]} 28. Kf1 {[%emt 0:05:20]} f5 {[%emt 0:03:20]} 29. e4 {[%emt 0:01:03]} Bd4 {[%emt 0:02:29]} 30. f4 {[%emt 0:03:43]} exf4 {[%emt 0:00:05]} 31. Nxf4 {[%emt 0:01:33]} Bf7 {[%emt 0:01:37]} 32. exf5 {[%emt 0:00:57]} b5 {[%emt 0:00:01]} 33. Ne6 {[%emt 0:01:34]} Bf6 {[%emt 0:07:43]} 34. Ke2 {[%emt 0:02:41]} Ke5 {[%emt 0:01:46]} 35. g4 {[%emt 0:01:01]} bxc4 {[%emt 0:02:10]} 36. bxc4 {[%emt 0:00:07]} g6 {[%emt 0:01:16]} 37. Kd3 {[%emt 0:00:59]} gxf5 {[%emt 0:00:43]} 38. gxf5 {[%emt 0:00:02]} Bxe6 {[%emt 0:00:39]} 39. fxe6 {[%emt 0:00:01]} Kxe6 {[%emt 0:00:07]} 40. Bxc6 {[%emt 0:00:00]} Kd6 {[%emt 0:00:09]} 41. Be4 {[%emt 0:00:23]} h6 {[%emt 0:00:05]} 42. h3 {[%emt 0:00:25]} Kc5 {[%emt 0:00:06]} 43. Bd5 {[%emt 0:00:04]} Bg7 {[%emt 0:00:17]} 44. Ke4 {[%emt 0:00:05]} Bf6 {[%emt 0:00:06]} 45. Kf5 {[%emt 0:00:07]} Bb2 {[%emt 0:00:08]} 46. Kg6 {[%emt 0:00:09]} Bc1 {[%emt 0:00:05]} 47. h4 {[%emt 0:00:07]} Bd2 {[%emt 0:00:05]} 48. h5 {[%emt 0:00:10]} Bg5 {[%emt 0:00:05]} 1/2-1/2